lending/lending_fUSD_20250114
["ID","MTS","AMOUNT","RATE_DAILY","PERIOD"]
[348925281,1736874639971,-500.0,9.973e-05,2]
[348925283,1736874639980,-500.0,9.973e-05,2]
[348925285,1736874639990,-535.96791425,9.973e-05,2]
[348925287,1736874640000,-500.0,9.973e-05,2]
[348925289,1736874640009,-500.0,9.973e-05,2]
[348925291,1736874640018,-500.0,9.973e-05,2]
[348925293,1736874640027,-500.0,9.973e-05,2]
[348925295,1736874640041,-500.0,9.973e-05,2]
[348925297,1736874640050,-500.0,9.973e-05,2]
[348925299,1736874640059,-755.83,9.973e-05,2]
[348925301,1736874640068,-504.02455567,9.973e-05,2]
[348925303,1736874640077,-500.0,9.973e-05,2]
[348925305,1736874640086,-500.0,9.973e-05,2]
[348925307,1736874640095,-500.0,9.973e-05,2]
[348925309,1736874640104,-500.0,9.973e-05,2]
[348925311,1736874640113,-500.0,9.973e-05,2]
[348925313,1736874640123,-1853.63,9.973e-05,2]
[348925315,1736874640133,-500.0,9.973e-05,2]
[348925318,1736874640142,-500.0,9.973e-05,2]
[348925320,1736874640152,-169.18884,9.973e-05,2]
[348925322,1736874640161,-500.0,9.973e-05,2]
[348925324,1736874640171,-500.0,9.973e-05,2]
[348925326,1736874640180,-500.0,9.973e-05,2]
[348925328,1736874640189,-500.0,9.973e-05,2]
[348925330,1736874640198,-500.0,9.973e-05,2]
[348925332,1736874640208,-500.0,9.973e-05,2]
[348925334,1736874640217,-500.0,9.973e-05,2]
[348925336,1736874640226,-500.0,9.973e-05,2]
[348925338,1736874640235,-500.0,9.973e-05,2]
[348925340,1736874640244,-500.0,9.973e-05,2]
[348925342,1736874640254,-157.421382,9.973e-05,2]
[348925344,1736874640263,-500.0,9.973e-05,2]
[348925346,1736874640272,-500.0,9.973e-05,2]
[348925348,1736874640281,-511.83012332,9.973e-05,2]
[348925350,1736874640291,-596.66262418,9.973e-05,2]
[348925352,1736874640300,-500.0,9.973e-05,2]
[348925354,1736874640309,-500.0,9.973e-05,2]
[348925356,1736874640318,-508.81106253,9.973e-05,2]
[348925358,1736874640328,-861.59,9.973e-05,2]
[348925360,1736874640337,-500.0,9.973e-05,2]
[348925362,1736874640346,-500.0,9.973e-05,2]
[348925364,1736874640356,-500.0,9.973e-05,2]
[348925366,1736874640365,-536.63,9.973e-05,2]
[348925368,1736874640375,-156.898007,9.973e-05,2]
[348925370,1736874640384,-500.0,9.973e-05,2]
[348925372,1736874640395,-500.0,9.973e-05,2]
[348925374,1736874640406,-500.0,9.973e-05,2]
[348925376,1736874640417,-500.0,9.973e-05,2]
[348925378,1736874640427,-500.0,9.973e-05,2]
[348925380,1736874640437,-500.36818709,9.973e-05,2]
[348925382,1736874640447,-500.0,9.973e-05,2]
[348925384,1736874640457,-500.0,9.973e-05,2]
[348925386,1736874640467,-500.0,9.973e-05,2]
[348925388,1736874640477,-500.0,9.973e-05,2]
[348925390,1736874640487,-500.0,9.973e-05,2]
[348925392,1736874640496,-500.0,9.973e-05,2]
[348925394,1736874640505,-161.202259,9.973e-05,2]
[348925396,1736874640515,-500.0,9.973e-05,2]
[348925398,1736874640524,-588.58690907,9.973e-05,2]
[348925400,1736874640534,-500.0,9.973e-05,2]
[348925402,1736874640543,-500.0,9.973e-05,2]
[348925404,1736874640552,-500.0,9.973e-05,2]
[348925406,1736874640562,-500.0,9.973e-05,2]
[348925408,1736874640571,-159.485229,9.973e-05,2]
[348925410,1736874640580,-500.0,9.973e-05,2]
[348925412,1736874640589,-579.0,9.973e-05,2]
[348925414,1736874640599,-500.0,9.973e-05,2]
[348925416,1736874640608,-500.0,9.973e-05,2]
[348925418,1736874640617,-500.0,9.973e-05,2]
[348925420,1736874640627,-504.42546372,9.973e-05,2]
[348925422,1736874640636,-500.0,9.973e-05,2]
[348925424,1736874640645,-500.0,9.973e-05,2]
[348925426,1736874640654,-500.0,9.973e-05,2]
[348925428,1736874640663,-500.0,9.973e-05,2]
[348925430,1736874640672,-500.0,9.973e-05,2]
[348925432,1736874640681,-501.70798032,9.973e-05,2]
[348925434,1736874640690,-500.0,9.973e-05,2]
[348925436,1736874640699,-500.0,9.973e-05,2]
[348925438,1736874640708,-503.32887218,9.973e-05,2]
[348925440,1736874640717,-501.41511313,9.973e-05,2]
[348925442,1736874640726,-500.0,9.973e-05,2]
[348925444,1736874640735,-500.0,9.973e-05,2]
[348925446,1736874640746,-500.0,9.973e-05,2]
[348925448,1736874640755,-377.73580553,9.973e-05,2]
[348925450,1736874640765,-500.0,9.973e-05,2]
[348925452,1736874640774,-500.0,9.973e-05,2]
[348925454,1736874640783,-500.0,9.973e-05,2]
[348925456,1736874640792,-500.0,9.974e-05,2]
[348925458,1736874640801,-1596.93,9.974e-05,2]
[348925460,1736874640810,-500.0,9.974e-05,2]
[348925461,1736874640819,-569.76,9.974e-05,2]
[348925462,1736874640828,-950.37,9.974e-05,2]
[348925463,1736874640837,-500.0,9.974e-05,2]
[348925465,1736874640846,-667.27,9.974e-05,2]
[348925467,1736874640856,-53527.37511915,9.974e-05,2]
[348925469,1736874640865,-1403.78578472,9.975e-05,2]
[348925471,1736874640874,-500.0,9.975e-05,2]
[348925473,1736874640883,-1566.81,9.975e-05,2]
[348925474,1736874640892,-555.75,9.975e-05,2]
[348925476,1736874640902,-852.0,9.975e-05,2]
[348925478,1736874640911,-500.0,9.975e-05,2]
[348925480,1736874640920,-500.0,9.975e-05,2]
[348925482,1736874640930,-500.0,9.975e-05,2]
[348925484,1736874640939,-777.15,9.975e-05,2]
[348925486,1736874640948,-500.0,9.975e-05,2]
[348925488,1736874640957,-500.0,9.975e-05,2]
[348925490,1736874640966,-668.22,9.975e-05,2]
[348925492,1736874640976,-500.0,9.975e-05,2]
[348925494,1736874640985,-500.0,9.975e-05,2]
[348925496,1736874640994,-500.0,9.975e-05,2]
[348925498,1736874641003,-500.0,9.975e-05,2]
[348925500,1736874641012,-579.09,9.975e-05,2]
[348925502,1736874641021,-500.0,9.975e-05,2]
[348925504,1736874641031,-961.72,9.975e-05,2]
[348925506,1736874641043,-818.85,9.975e-05,2]
[348925508,1736874641054,-1665.38,9.975e-05,2]
[348925510,1736874641063,-500.0,9.975e-05,2]
[348925512,1736874641072,-1000.0,9.975e-05,2]
[348925514,1736874641083,-6628.09,9.975e-05,2]
[348925516,1736874641092,-784.12,9.975e-05,2]
[348925518,1736874641102,-500.0,9.975e-05,2]
[348925520,1736874641112,-41627.88524598,9.976e-05,2]
[348925524,1736874641137,-1791.8334918,9.976e-05,2]
[348925528,1736874641165,-500.0,9.973e-05,2]
[348925530,1736874641175,-500.0,9.973e-05,2]
[348925532,1736874641184,-10107.65638137,9.976e-05,2]
[348925534,1736874641194,-755.83,9.977e-05,2]
[348925536,1736874641204,-755.83,9.977e-05,2]
[348925538,1736874641214,-11235.29769767,9.977e-05,2]
[348925540,1736874641225,-2654.86077441,9.977e-05,2]
[348925542,1736874641236,-943.616,9.977e-05,2]
[348925546,1736874641263,-3123.54115014,9.977e-05,2]
[348925548,1736874641275,-4999.9999995,9.977e-05,2]
[348925572,1736874641494,-1184.8550005,9.977e-05,2]
[348925575,1736874641506,-5104.188,9.977e-05,2]
[348925596,1736874641701,-405.65104909,9.963e-05,2]
[348925598,1736874641713,-94.34895091,9.963e-05,2]
[348925600,1736874641723,-2551.9904127,9.977e-05,2]
[348925602,1736874641734,-1772.84939215,9.977e-05,2]
[348925611,1736874641810,-19956.17669208,9.977e-05,2]
[348925613,1736874641819,-600.46573906,9.978e-05,2]
[348925616,1736874641834,-803.32004566,9.978e-05,2]
[348925618,1736874641843,-1889.1801955,9.978e-05,2]
[348925620,1736874641852,-755.83,9.978e-05,2]
[348925621,1736874641861,-755.83,9.978e-05,2]
[348925623,1736874641870,-3097.06136986,9.98e-05,2]
[348925625,1736874641880,-755.83,9.981e-05,2]
[348925627,1736874641890,-592.85550688,9.981e-05,2]
[348925629,1736874641900,-755.83,9.982e-05,2]
[348925631,1736874641909,-755.83,9.982e-05,2]
[348925633,1736874641919,-740.78958552,9.983e-05,2]
[348925635,1736874641929,-53527.37511915,9.983e-05,2]
[348925638,1736874641939,-740.78958552,9.984e-05,2]
[348925639,1736874641948,-592.85550688,9.985e-05,2]
[348925641,1736874641958,-3097.06136986,9.986e-05,2]
[348925643,1736874641967,-755.83,9.986e-05,2]
[348925645,1736874641976,-755.83,9.986e-05,2]
[348925647,1736874641985,-592.85550688,9.986e-05,2]
[348925649,1736874641995,-823.09953946,9.988e-05,2]
[348925650,1736874642004,-755.83,9.988e-05,2]
[348925651,1736874642014,-755.83,9.988e-05,2]
[348925652,1736874642023,-823.09953946,9.989e-05,2]
[348925653,1736874642032,-1403.78578472,9.99e-05,2]
[348925654,1736874642048,-3097.06136986,9.991e-05,2]
[348925655,1736874642058,-1889.1801955,9.991e-05,2]
[348925657,1736874642067,-1403.78578472,9.991e-05,2]
[348925659,1736874642077,-755.83,9.991e-05,2]
[348925661,1736874642088,-755.83,9.991e-05,2]
[348925663,1736874642097,-1403.78578472,9.992e-05,2]
[348925665,1736874642107,-1889.1801955,9.992e-05,2]
[348925667,1736874642117,-1889.1801955,9.993e-05,2]
[348925669,1736874642128,-505.27492351,9.993e-05,2]
[348925671,1736874642137,-500.0,9.993e-05,2]
[348925673,1736874642146,-592.85550688,9.993e-05,2]
[348925675,1736874642155,-200.0,9.994e-05,2]
[348925677,1736874642167,-53527.37511915,9.994e-05,2]
[348925679,1736874642177,-3097.06136986,9.995e-05,2]
[348925681,1736874642186,-3097.06136986,9.996e-05,2]
[348925683,1736874642196,-1889.1801955,9.997e-05,2]
[348925685,1736874642205,-755.83,9.997e-05,2]
[348925687,1736874642215,-592.85550688,9.998e-05,2]
[348925689,1736874642225,-29652.312381,9.998e-05,2]
[348925691,1736874642280,-2034.52399846,9.998e-05,2]
[348925692,1736874642292,-4173.47560101,9.998e-05,2]
[348925693,1736874642304,-17667.06313868,9.998e-05,2]
[348925694,1736874642313,-755.83,9.999e-05,2]
[348925695,1736874642322,-755.83,9.999e-05,2]
[348925696,1736874642331,-755.83,9.999e-05,2]
[348925697,1736874642340,-755.83,9.999e-05,2]
[348925698,1736874642350,-755.83,9.999e-05,2]
[348925699,1736874642359,-755.83,9.999e-05,2]
[348925701,1736874642368,-755.83,9.999e-05,2]
[348925703,1736874642378,-756.05,9.999e-05,2]
[348925705,1736874642388,-719.05386247,9.999e-05,2]
[348925708,1736874642401,-1027.43750262,9.999e-05,2]
[348925711,1736874642413,-142.68883041,9.999e-05,2]
[348925713,1736874642423,-592.85550688,9.999e-05,2]
[348925714,1736874642432,-628.144012,0.0001,2]
[348925715,1736874642444,-2468.91735786,0.0001,2]
[348925716,1736874642454,-1403.78578472,0.0001,2]
[348925717,1736874642464,-3160.95344542,0.0001,4]
[348925718,1736874642473,-500.0,0.0001,2]
[348925719,1736874642484,-136414.04568119,0.0001,2]
[348925720,1736874642493,-63975.82,0.0001,2]
[348925721,1736874642503,-1836.93028621,0.0001,2]
[348925722,1736874642513,-862.70120168,0.00010022,2]
[348925723,1736874642523,-1000.0,0.00010108,2]
[348925726,1736874642533,-28404.09030115,0.00010145,2]
[348925729,1736874642544,-1595.90969885,0.00010145,2]
[348925730,1736874642555,-862.70120168,0.0001018,2]
[348925731,1736874642564,-1836.93028613,0.00010217,2]
[348925732,1736874642574,-1531.30391016,0.00010227,2]
[348925733,1736874642584,-500.0,0.00010237,2]
[348925734,1736874642594,-500.0,0.00010237,2]
[348925735,1736874642604,-500.0,0.00010237,2]
[348925736,1736874642614,-515.32,0.00010237,2]
[348925737,1736874642624,-500.0,0.00010237,2]
[348925738,1736874642634,-500.0,0.00010237,2]
[348925739,1736874642643,-500.0,0.00010237,2]
[348925740,1736874642653,-500.0,0.00010237,2]
[348925741,1736874642663,-500.0,0.00010237,2]
[348925742,1736874642672,-500.0,0.00010237,2]
[348925743,1736874642682,-500.0,0.00010237,2]
[348925744,1736874642691,-500.0,0.00010237,2]
[348925745,1736874642701,-500.0,0.00010237,2]
[348925746,1736874642711,-500.0,0.00010237,2]
[348925747,1736874642720,-500.0,0.00010237,2]
[348925748,1736874642730,-500.0,0.00010237,2]
[348925749,1736874642739,-500.0,0.00010237,2]
[348925750,1736874642749,-500.0,0.00010237,2]
[348925751,1736874642758,-500.0,0.00010237,2]
[348925752,1736874642768,-500.0,0.00010237,2]
[348925753,1736874642777,-500.0,0.00010237,2]
[348925754,1736874642788,-500.0,0.00010237,2]
[348925755,1736874642798,-500.0,0.00010237,2]
[348925756,1736874642808,-500.0,0.00010237,2]
[348925757,1736874642817,-500.0,0.00010237,2]
[348925758,1736874642826,-500.0,0.00010237,2]
[348925759,1736874642836,-500.0,0.00010237,2]
[348925760,1736874642845,-3407.14,0.00010237,2]
[348925762,1736874642855,-500.0,0.00010237,2]
[348925763,1736874642864,-500.0,0.00010237,2]
[348925765,1736874642874,-500.0,0.00010237,2]
[348925766,1736874642884,-500.0,0.00010237,2]
[348925767,1736874642894,-500.0,0.00010237,2]
[348925768,1736874642904,-561.01,0.00010237,2]
[348925769,1736874642913,-508.87,0.00010237,2]
[348925770,1736874642923,-500.0,0.00010237,2]
[348925771,1736874642932,-500.0,0.00010237,2]
[348925772,1736874642943,-500.0,0.00010237,2]
[348925773,1736874642953,-500.0,0.00010237,2]
[348925774,1736874642962,-500.0,0.00010237,2]
[348925776,1736874642972,-158.75082926,0.00010237,2]
[348925778,1736874642981,-607.21,0.00010237,2]
[348925780,1736874642991,-500.0,0.00010237,2]
[348925782,1736874643000,-500.0,0.00010237,2]
[348925784,1736874643010,-500.0,0.00010237,2]
[348925786,1736874643019,-500.0,0.00010237,2]
[348925788,1736874643029,-500.0,0.00010237,2]
[348925790,1736874643040,-500.0,0.00010237,2]
[348925792,1736874643050,-500.0,0.00010237,2]
[348925794,1736874643059,-917.35,0.00010237,2]
[348925796,1736874643069,-509.94414278,0.00010237,2]
[348925798,1736874643079,-172.09174993,0.00010237,2]
[348925800,1736874643089,-500.0,0.00010237,2]
[348925802,1736874643099,-500.0,0.00010237,2]
[348925804,1736874643108,-500.0,0.00010237,2]
[348925806,1736874643119,-989.63,0.00010237,2]
[348925808,1736874643129,-500.0,0.00010237,2]
[348925810,1736874643138,-500.0,0.00010237,2]
[348925812,1736874643148,-500.0,0.00010237,2]
[348925814,1736874643158,-500.0,0.00010237,2]
[348925816,1736874643168,-726.11,0.00010237,2]
[348925818,1736874643177,-500.0,0.00010237,2]
[348925820,1736874643188,-500.0,0.00010237,2]
[348925822,1736874643198,-501.39,0.00010237,2]
[348925824,1736874643207,-500.0,0.00010237,2]
[348925826,1736874643217,-500.0,0.00010237,2]
[348925828,1736874643227,-500.0,0.00010237,2]
[348925830,1736874643237,-1861.09,0.00010237,2]
[348925832,1736874643247,-500.0,0.00010237,2]
[348925834,1736874643257,-500.0,0.00010237,2]
[348925836,1736874643266,-500.0,0.00010237,2]
[348925838,1736874643276,-1031.69,0.00010237,2]
[348925840,1736874643285,-500.0,0.00010237,2]
[348925842,1736874643295,-500.0,0.00010237,2]
[348925845,1736874643305,-500.0,0.00010237,2]
[348925848,1736874643314,-2144.09,0.00010237,2]
[348925851,1736874643323,-500.0,0.00010237,2]
[348925854,1736874643332,-500.0,0.00010237,2]
[348925857,1736874643342,-500.0,0.00010237,2]
[348925860,1736874643351,-2297.71,0.00010237,2]
[348925862,1736874643361,-500.0,0.00010237,2]
[348925865,1736874643370,-569.3,0.00010237,2]
[348925867,1736874643380,-500.0,0.00010237,2]
[348925869,1736874643390,-500.0,0.00010237,2]
[348925871,1736874643400,-500.0,0.00010237,2]
[348925873,1736874643411,-500.0,0.00010237,2]
[348925875,1736874643420,-500.0,0.00010237,2]
[348925876,1736874643430,-500.0,0.00010237,2]
[348925879,1736874643441,-1091.36,0.00010237,2]
[348925881,1736874643451,-500.0,0.00010237,2]
[348925883,1736874643460,-606.9,0.00010237,2]
[348925884,1736874643469,-500.0,0.00010237,2]
[348925886,1736874643478,-500.0,0.00010237,2]
[348925888,1736874643488,-1243.37,0.00010237,2]
[348925891,1736874643498,-1821.82,0.00010237,2]
[348925892,1736874643508,-613.48,0.00010237,2]
[348925894,1736874643517,-501.3,0.00010237,2]
[348925897,1736874643528,-2499.84,0.00010237,2]
[348925899,1736874643538,-817.81,0.00010237,2]
[348925900,1736874643547,-500.0,0.00010237,2]
[348925903,1736874643558,-726.07,0.00010237,2]
[348925904,1736874643568,-524.12,0.00010237,2]
[348925906,1736874643577,-1768.11,0.00010237,2]
[348925908,1736874643587,-500.0,0.00010237,2]
[348925910,1736874643596,-1022.18,0.00010237,2]
[348925912,1736874643605,-500.0,0.00010237,2]
[348925914,1736874643615,-500.0,0.00010237,2]
[348925916,1736874643625,-634.66,0.00010237,2]
[348925918,1736874643636,-1118.55,0.00010237,2]
[348925920,1736874643646,-500.0,0.00010237,2]
[348925922,1736874643655,-500.0,0.00010237,2]
[348925924,1736874643665,-500.0,0.00010237,2]
[348925926,1736874643674,-1461.49,0.00010237,2]
[348925928,1736874643684,-523.3,0.00010237,2]
[348925930,1736874643696,-500.0,0.00010237,2]
[348925932,1736874643705,-835.63,0.00010237,2]
[348925934,1736874643715,-544.28,0.00010238,2]
[348925936,1736874643725,-625.7,0.00010238,2]
[348925938,1736874643734,-351.31213506,0.00010238,2]
[348925940,1736874643744,-500.0,0.00010238,2]
[348925942,1736874643754,-500.0,0.00010238,2]
[348925944,1736874643763,-500.0,0.00010238,2]
[348925946,1736874643773,-500.0,0.00010238,2]
[348925948,1736874643782,-541.90345645,0.00010238,2]
[348925950,1736874643792,-500.0,0.00010238,2]
[348925952,1736874643802,-500.0,0.00010238,2]
[348925954,1736874643812,-500.0,0.00010238,2]
[348925956,1736874643821,-500.0,0.00010238,2]
[348925958,1736874643831,-500.0,0.00010238,2]
[348925960,1736874643841,-500.0,0.00010238,2]
[348925962,1736874643851,-500.0,0.00010238,2]
[348925964,1736874643860,-500.0,0.00010238,2]
[348925966,1736874643870,-500.0,0.00010238,2]
[348925968,1736874643879,-500.0,0.00010238,2]
[348925970,1736874643889,-500.0,0.00010238,2]
[348925972,1736874643898,-500.0,0.00010238,2]
[348925974,1736874643908,-500.0,0.00010238,2]
[348925976,1736874643918,-500.0,0.00010238,2]
[348925978,1736874643927,-500.0,0.00010238,2]
[348925980,1736874643936,-202.95985535,0.00010238,2]
[348925983,1736874643947,-503.99167107,0.00010238,2]
[348925985,1736874643956,-500.0,0.00010238,2]
[348925988,1736874643966,-500.0,0.00010238,2]
[348925991,1736874643975,-500.0,0.00010238,2]
[348925993,1736874643984,-500.0,0.00010238,2]
[348925996,1736874643994,-505.78295507,0.00010238,2]
[348925998,1736874644003,-500.0,0.00010238,2]
[348926001,1736874644012,-500.0,0.00010238,2]
[348926002,1736874644022,-500.0,0.00010238,2]
[348926005,1736874644031,-500.0,0.00010238,2]
[348926008,1736874644043,-500.0,0.00010238,2]
[348926009,1736874644052,-502.85705948,0.00010238,2]
[348926011,1736874644062,-500.0,0.00010238,2]
[348926013,1736874644071,-500.0,0.00010238,2]
[348926015,1736874644081,-500.0,0.00010238,2]
[348926017,1736874644091,-500.0,0.00010238,2]
[348926019,1736874644102,-500.0,0.00010238,2]
[348926021,1736874644111,-500.0,0.00010238,2]
[348926023,1736874644121,-500.0,0.00010238,2]
[348926025,1736874644131,-500.0,0.00010238,2]
[348926027,1736874644141,-500.0,0.00010238,2]
[348926029,1736874644151,-500.0,0.00010238,2]
[348926031,1736874644160,-500.0,0.00010238,2]
[348926033,1736874644169,-500.0,0.00010238,2]
[348926035,1736874644179,-500.0,0.00010238,2]
[348926037,1736874644188,-505.79446016,0.00010238,2]
[348926039,1736874644198,-505.37492282,0.00010238,2]
[348926041,1736874644208,-500.0,0.00010238,2]
[348926043,1736874644218,-500.0,0.00010238,2]
[348926045,1736874644227,-500.0,0.00010238,2]
[348926047,1736874644236,-500.0,0.00010238,2]
[348926049,1736874644245,-500.0,0.00010238,2]
[348926051,1736874644255,-500.0,0.00010238,2]
[348926053,1736874644264,-302.10560383,0.00010238,2]
[348926055,1736874644273,-500.0,0.00010238,2]
[348926057,1736874644283,-500.0,0.00010238,2]
[348926059,1736874644292,-500.0,0.00010238,2]
[348926061,1736874644301,-500.0,0.00010238,2]
[348926063,1736874644311,-500.0,0.00010238,2]
[348926065,1736874644320,-500.0,0.00010238,2]
[348926067,1736874644330,-500.0,0.00010238,2]
[348926069,1736874644339,-500.0,0.00010238,2]
[348926071,1736874644349,-500.0,0.00010238,2]
[348926073,1736874644358,-500.0,0.00010238,2]
[348926075,1736874644367,-500.0,0.00010238,2]
[348926077,1736874644376,-500.0,0.00010238,2]
[348926079,1736874644385,-350.18512272,0.00010238,2]
[348926081,1736874644395,-500.0,0.00010238,2]
[348926083,1736874644405,-500.0,0.00010238,2]
[348926085,1736874644415,-587.33,0.00010238,2]
[348926087,1736874644424,-500.0,0.00010238,2]
[348926089,1736874644434,-500.0,0.00010238,2]
[348926091,1736874644443,-500.0,0.00010238,2]
[348926093,1736874644453,-500.0,0.00010238,2]
[348926095,1736874644462,-500.0,0.00010238,2]
[348926097,1736874644471,-500.0,0.00010238,2]
[348926098,1736874644481,-500.0,0.00010238,2]
[348926099,1736874644490,-769.09,0.00010238,2]
[348926100,1736874644499,-571.9,0.00010238,2]
[348926101,1736874644509,-931.22,0.00010238,2]
[348926102,1736874644520,-503.86448063,0.00010239,2]
[348926103,1736874644529,-1000.0,0.00010239,2]
[348926104,1736874644539,-1164.61,0.00010239,2]
[348926105,1736874644549,-669.9,0.00010239,2]
[348926106,1736874644558,-1012.55,0.00010241,2]
[348926107,1736874644567,-1395.8,0.00010241,2]
[348926108,1736874644577,-4210.37,0.00010241,2]
[348926109,1736874644587,-500.0,0.00010241,2]
[348926110,1736874644596,-500.0,0.00010241,2]
[348926111,1736874644606,-904.43,0.00010241,2]
[348926112,1736874644615,-646.71,0.00010241,2]
[348926113,1736874644625,-1140.74,0.00010241,2]
[348926114,1736874644635,-570.49,0.00010241,2]
[348926115,1736874644645,-2114.74,0.00010241,2]
[348926116,1736874644654,-782.74,0.00010241,2]
[348926117,1736874644664,-500.0,0.00010241,2]
[348926118,1736874644673,-1263.13,0.00010241,2]
[348926119,1736874644683,-946.28,0.00010241,2]
[348926120,1736874644692,-500.0,0.00010247,2]
[348926121,1736874644702,-202.40737307,0.00010247,2]
[348926122,1736874644711,-500.0,0.00010247,2]
[348926123,1736874644721,-500.0,0.00010247,2]
[348926124,1736874644731,-500.0,0.00010247,2]
[348926125,1736874644741,-500.0,0.00010247,2]
[348926126,1736874644751,-500.0,0.00010247,2]
[348926127,1736874644760,-500.0,0.00010247,2]
[348926128,1736874644770,-500.0,0.00010247,2]
[348926129,1736874644780,-500.0,0.00010247,2]
[348926130,1736874644791,-500.0,0.00010247,2]
[348926131,1736874644800,-500.0,0.00010247,2]
[348926132,1736874644810,-500.0,0.00010247,2]
[348926133,1736874644820,-500.0,0.00010247,2]
[348926134,1736874644829,-500.0,0.00010247,2]
[348926135,1736874644840,-500.0,0.00010247,2]
[348926136,1736874644849,-500.0,0.00010247,2]
[348926137,1736874644859,-500.0,0.00010247,2]
[348926138,1736874644869,-500.0,0.00010247,2]
[348926139,1736874644879,-500.0,0.00010247,2]
[348926140,1736874644889,-500.0,0.00010247,2]
[348926141,1736874644899,-500.0,0.00010247,2]
[348926142,1736874644909,-500.0,0.00010247,2]
[348926143,1736874644918,-500.0,0.00010247,2]
[348926144,1736874644928,-500.0,0.00010247,2]
[348926145,1736874644938,-500.0,0.00010247,2]
[348926146,1736874644948,-500.0,0.00010247,2]
[348926147,1736874644958,-500.0,0.00010247,2]
[348926148,1736874644967,-507.69615987,0.00010247,2]
[348926149,1736874644977,-500.0,0.00010247,2]
[348926150,1736874644990,-500.0,0.00010247,2]
[348926151,1736874644999,-620.5,0.00010247,2]
[348926152,1736874645009,-500.0,0.00010247,2]
[348926153,1736874645019,-500.0,0.00010247,2]
[348926154,1736874645028,-500.0,0.00010247,2]
[348926155,1736874645039,-500.0,0.00010247,2]
[348926156,1736874645050,-500.0,0.00010247,2]
[348926157,1736874645060,-500.0,0.00010247,2]
[348926158,1736874645070,-500.0,0.00010247,2]
[348926159,1736874645082,-500.0,0.00010247,2]
[348926160,1736874645092,-500.0,0.00010247,2]
[348926161,1736874645103,-500.0,0.00010247,2]
[348926162,1736874645114,-516.48,0.00010247,2]
[348926163,1736874645125,-500.0,0.00010247,2]
[348926164,1736874645135,-500.0,0.00010247,2]
[348926165,1736874645144,-500.0,0.00010247,2]
[348926166,1736874645154,-500.0,0.00010247,2]
[348926167,1736874645164,-500.0,0.00010247,2]
[348926168,1736874645174,-500.0,0.00010247,2]
[348926169,1736874645184,-500.0,0.00010247,2]
[348926170,1736874645194,-500.0,0.00010247,2]
[348926171,1736874645203,-500.0,0.00010247,2]
[348926172,1736874645213,-500.0,0.00010247,2]
[348926173,1736874645222,-500.0,0.00010247,2]
[348926174,1736874645232,-500.0,0.00010247,2]
[348926175,1736874645242,-500.0,0.00010247,2]
[348926176,1736874645251,-500.0,0.00010247,2]
[348926177,1736874645261,-500.0,0.00010247,2]
[348926179,1736874645270,-500.0,0.00010247,2]
[348926180,1736874645280,-505.5340845,0.00010247,2]
[348926181,1736874645289,-500.0,0.00010247,2]
[348926182,1736874645299,-500.0,0.00010247,2]
[348926183,1736874645308,-500.0,0.00010247,2]
[348926184,1736874645318,-512.00535454,0.00010247,2]
[348926185,1736874645327,-500.0,0.00010247,2]
[348926186,1736874645337,-500.0,0.00010247,2]
[348926187,1736874645346,-500.0,0.00010247,2]
[348926188,1736874645356,-500.0,0.00010247,2]
[348926189,1736874645365,-500.0,0.00010247,2]
[348926190,1736874645374,-500.0,0.00010247,2]